Cogmind - Beta 16.1 @@@ ROGUE MODE // 2026.03.30 @ 00:43:57 Player: DenchikZalaziet Result: Destroyed by G-47 Trooper with Particle Gun Performance ------------- Evolutions (1) 500 Regions Visited (6) 1200 Robots Destroyed (75) 375 Value Destroyed (1561) 1561 Prototype IDs (28) 560 Alien Tech Used (0) 0 Bonus (300) 300 TOTAL SCORE: 4496 Bonus ------- Aligned with FarCom 300 Cogmind --------- Core Integrity 0/400 Matter 69/300 Energy 265/265 System Corruption 4% Temperature Cool (9) Movement Core (1500) Ox29 Location -8/Mines Parts ------- > --- POWER (1) -------- Improved Ion Engine (fused) > --- PROPULSION (2) --- (None) > --- UTILITY (4) ------ Huge Storage Unit Signal Interpreter Hacking Suite > --- WEAPON (2) ------- Hammer > --- INVENTORY (25) --- Flight Unit Flight Unit Flight Unit Flight Unit Flight Unit VTOL Module VTOL Module Flying Fortress v7 Small Storage Unit Terrain Scanner Hacking Suite Light Assault Rifle Light Assault Rifle Light Assault Rifle Heavy Assault Rifle Heavy Assault Rifle Rocket Launcher Heavy Hammer Peak State ------------ > --- POWER ------------ Improved Ion Engine > --- PROPULSION ------- Light Treads Flight Unit > --- UTILITY ---------- Huge Storage Unit Signal Interpreter Light Armor Plating Hacking Suite > --- WEAPON ----------- Assault Rifle Heavy Assault Rifle > --- INVENTORY -------- Flight Unit Flight Unit Flight Unit Flight Unit Flight Unit VTOL Module VTOL Module Flying Fortress v7 Small Storage Unit Terrain Scanner Hacking Suite Light Assault Rifle Light Assault Rifle Light Assault Rifle Heavy Assault Rifle Heavy Assault Rifle Rocket Launcher Rocket Launcher Hammer Heavy Hammer [Rating: 19] Favorites ----------- Power Ion Engine Engine Ion Engine Propulsion Light Treads Treads Light Treads Flight Unit Flight Unit Utility Huge Storage Unit Device Terrain Scanner Storage Huge Storage Unit Processor Terrain Scan Processor Hackware Hacking Suite Protection Light Armor Plating Weapon Light Assault Rifle Ballistic Gun Light Assault Rifle Launcher Rocket Launcher Special Weapon Mining Laser Impact Weapon Hammer Build | -11 -10 -10 -9 -9 -9 -8 ------- Run | Yrd Mat Min Mat Min Exi Min Slots Evolved 2 | . . . 2 . . . Power . | . . . . . . . Propulsion . | . . . . . . . Utility 2 | . . . 2 . . . Weapon . | . . . . . . . Parts Attached 50 | 7 8 6 27 1 . 1 Power 10 | 1 2 2 5 . . . Engine 10 | 1 2 2 5 . . . Core . | . . . . . . . Reactor . | . . . . . . . Propulsion 13 | 2 2 . 8 1 . . Treads 12 | 2 2 . 8 . . . Leg . | . . . . . . . Wheel . | . . . . . . . Hover . | . . . . . . . Flight 1 | . . . . 1 . . Utility 11 | 2 2 1 6 . . . Device 4 | 1 1 . 2 . . . Storage 2 | 1 1 . . . . . Processor 2 | . . . 2 . . . Hackware 1 | . . . 1 . . . Protection 2 | . . 1 1 . . . Artifact . | . . . . . . . Weapon 16 | 2 2 3 8 . . 1 Energy Gun . | . . . . . . . Energy Cannon . | . . . . . . . Ballistic Gun 11 | 2 2 2 5 . . . Ballistic Cannon . | . . . . . . . Launcher 2 | . . . 2 . . . Special Weapon 1 | . . 1 . . . . Impact Weapon 2 | . . . 1 . . 1 Slashing Weapon . | . . . . . . . Piercing Weapon . | . . . . . . . Special Melee Weapon . | . . . . . . . Unidentified Prototypes . | . . . . . . . Parts Lost 19 | . 1 1 10 1 . 6 Power 2 | . . . 2 . . . Propulsion 7 | . . . 4 1 . 2 Utility 5 | . 1 . 3 . . 1 Weapon 5 | . . 1 1 . . 3 Highest Loss Streak 6 | . 1 1 4 1 . 6 To Critical Strikes . | . . . . . . . Average Backups 18 | 1 11 19 24 20 21 21 Power . | . 1 1 1 . . . Propulsion 7 | . 4 7 9 7 7 8 Utility 3 | . 2 6 4 3 3 3 Weapon 6 | . 2 4 8 10 11 10 Tool/Special . | . . . . . . . Unused Backups 17 | . 3 . 4 . . 10 Power 1 | . 1 . . . . . Propulsion 13 | . 2 . 3 . . 8 Utility 1 | . . . . . . 1 Weapon 1 | . . . . . . 1 Tool/Special 1 | . . . 1 . . . Average Slot Usage (%) 96 | . 99 99 97 100 81 77 Engine 12 | . 14 14 10 11 11 11 Treads 23 | . 28 28 21 15 11 8 Flight 1 | . . . . 6 11 8 Device 5 | . 5 . 9 . . . Storage 12 | . 14 14 11 11 11 11 Processor 4 | . . . 7 11 11 11 Hackware 5 | . . . 9 11 11 11 Protection 6 | . 7 14 3 11 11 9 Ballistic Gun 22 | . 28 26 21 22 4 3 Peak Build Rating 19 | 7 9 9 18 16 16 19 Average Rating 11 | 5 7 8 14 16 14 16 On Entrance 10 | . 7 9 9 16 16 16 Avg Prop Armor Cover (%) 2 | . . . . 2 2 3 Naked Turns . | . . . . . . . Heaviest Build 96 | 12 89 91 96 96 96 90 Greatest Support 40 | 40 40 40 40 40 20 20 Greatest Overweight (x) 4 | . 2 2 4 4 4 4 Average Overweight (x) 1 | . 1 2 2 3 4 4 Largest Inventory Capacity 25 | 8 25 25 25 25 25 25 Average Capacity 22 | 7 19 25 25 25 25 25 Most Carried 25 | 2 16 24 25 21 25 25 Average Carried 18 | 1 11 19 24 20 22 23 Final Capacity 25 | 8 25 25 25 25 25 25 Final Carried 25 | 2 16 24 21 20 25 21 Class Distribution -------------------- 76% | Scavenger-Mutant 23% | Mutant Dominant Class ---------------- Mutant | -10/Materials Scavenger-Mutant | -10/Mines Scavenger-Mutant | -9/Materials Scavenger-Mutant | -9/Mines Scavenger-Mutant | -9/Exiles Scavenger-Mutant | -8/Mines Resources | -11 -10 -10 -9 -9 -9 -8 ----------- Run | Yrd Mat Min Mat Min Exi Min Matter Collected 1566 | 185 537 97 732 15 . . Remotely . | . . . . . . . Salvage Created 2161 | 57 783 84 1084 43 . 110 Parts 149 | 5 47 12 75 3 . 7 Haulers Intercepted 3 | . 2 . 1 . . . Recyclers Shooed 1 | . 1 . . . . . Parts Field Recycled . | . . . . . . . Retrieved Matter . | . . . . . . . Parts Self-Destructed . | . . . . . . . Prevented . | . . . . . . . Parts Restored . | . . . . . . . Kills | -11 -10 -10 -9 -9 -9 -8 ------- Run | Yrd Mat Min Mat Min Exi Min Combat Hostiles Destroyed 56 | . 13 5 32 3 . 3 Guns 38 | . 13 4 17 3 . 1 Cannons 1 | . . 1 . . . . AOE 17 | . . . 15 . . 2 Classes Destroyed 12 | 1 6 1 3 . . 1 Worker 1 | . . . 1 . . . Builder 1 | . . 1 . . . . Tunneler 3 | 2 1 . . . . . Hauler 3 | . 2 . 1 . . . Recycler 3 | . 2 . 1 . . . Operator 3 | . 3 . . . . . Watcher 5 | . 2 . 3 . . . Swarmer 29 | . 6 5 15 3 . . Grunt 18 | . 7 . 9 . . 2 Brawler 1 | . . . 1 . . . Duelist 1 | . . . . . . 1 Sentry 7 | . . . 7 . . . Best Kill Streak 5 | 2 3 3 5 3 . 3 Combat Bots Only 5 | . 3 3 5 3 . 3 Max Kills in Single Turn 4 | 1 2 1 4 1 . 1 Gunslinging 1 | . . . 1 . . . Exploded 4 | . . . 4 . . 1 Melee . | . . . . . . . Uniques/NPCs Destroyed . | . . . . . . . Combat | -11 -10 -10 -9 -9 -9 -8 -------- Run | Yrd Mat Min Mat Min Exi Min Hostile Shots Fired 372 | . 70 56 194 15 . 37 Missed 98 | . 20 8 60 3 . 7 Hits 274 | . 50 48 134 12 . 30 Melee 4 | . . . . . . 4 Projectile 270 | . 50 48 134 12 . 26 Critical Strikes 6 | . 1 . 3 . . 2 Damage Taken 3301 | . 527 385 1764 103 . 522 Core 599 | . 98 101 205 9 . 186 Absorbed by Shields . | . . . . . . . Regen/Repaired (Parts) 7 | . 4 . 3 . . . Core Remaining (%) 60 | 100 . 20 . . . . Volleys Fired 224 | 11 78 17 106 4 . 8 Largest 2 | 2 2 2 2 2 . 2 Hottest 120 | 40 40 120 53 46 . 43 Shots Fired 440 | 22 156 32 209 8 1 12 Gun 424 | 22 156 29 200 8 1 8 Cannon . | . . . . . . . Launcher 13 | . . . 9 . . 4 Special 3 | . . 3 . . . . Kinetic 424 | 22 156 29 200 8 1 8 Thermal 3 | . . 3 . . . . Explosive 13 | . . . 9 . . 4 Electromagnetic . | . . . . . . . Robot Hit Streak 18 | 10 16 4 18 5 . 8 Robot Miss Streak 6 | 2 6 2 3 1 . 1 Penetration Max . | . . . . . . . Secondary Targets 3 | . 1 . 1 1 . . Max Gunslinging Chain 1 | . 1 . 1 1 . . Shots Hit Robots 302 | 16 93 19 154 6 . 14 Core Hits 132 | 5 41 6 66 3 . 11 Critical Kills . | . . . . . . . Critical Parts Destroyed . | . . . . . . . Critical Strikes . | . . . . . . . Melee Attacks 3 | . . . . . . 3 Impact 3 | . . . . . . 3 Slashing . | . . . . . . . Piercing . | . . . . . . . Sneak Attacks . | . . . . . . . Combat Hostiles . | . . . . . . . Follow-up Attacks . | . . . . . . . Damage Inflicted 4499 | 154 1021 263 2400 95 . 566 Guns 3054 | 154 1016 213 1484 95 . 92 Cannons . | . . . . . . . Explosions 1294 | . . . 908 . . 386 Melee 88 | . . . . . . 88 Ramming 13 | . 5 . 8 . . . Kinetic 3054 | 154 1016 213 1484 95 . 92 Thermal 50 | . . 50 . . . . Explosive 1294 | . . . 908 . . 386 Electromagnetic . | . . . . . . . Impact 88 | . . . . . . 88 Slashing . | . . . . . . . Piercing . | . . . . . . . Highest Corruption 4 | . 3 3 4 4 4 4 Average Corruption 3 | . 2 3 3 4 4 4 Corruption Purged . | . . . . . . . Corruption Blocked . | . . . . . . . Effects 76 | . 27 5 15 8 18 3 Message Errors 22 | . 7 2 2 3 6 2 Matter Fused 16 | . 4 3 4 2 3 . Heat Flow Errors 12 | . 5 . 4 2 1 . Energy Discharges 10 | . 6 . 1 . 3 . Parts Fused 2 | . 1 . . . 1 . Data Loss (minor) 9 | . 4 . 1 1 3 . Data Loss (major) 1 | . . . 1 . . . Misfires 2 | . . . 1 . 1 . Alerts 2 | . . . 1 . . 1 Overload Shots . | . . . . . . . Overflow Damage 41 | . . . 41 . . . Projectiles . | . . . . . . . Explosions 41 | . . . 41 . . . Melee . | . . . . . . . Knockbacks 1 | . . . . . . 1 Impact 1 | . . . . . . 1 Kinetic . | . . . . . . . Secondary . | . . . . . . . Self-Inflicted Damage 125 | . . . 125 . . . Shots 3 | . . . 3 . . . Rammed 2 | . 1 . 1 . . . Targets Rammed 2 | . 1 . 1 . . . Kicked . | . . . . . . . Crushed . | . . . . . . . Highest Temperature 266 | . 257 70 171 261 266 76 Average Temperature 45 | . 55 17 22 142 135 36 Received Heat Transfer 1077 | . 210 . 615 . . 252 Siege Activations . | . . . . . . . Martial Activations . | . . . . . . . Shielding Activations . | . . . . . . . Robots Disrupted . | . . . . . . . Combat Hostiles . | . . . . . . . Robots Corrupted . | . . . . . . . Combat Hostiles . | . . . . . . . Parts Fried . | . . . . . . . Impact Corruptions . | . . . . . . . Robots Melted . | . . . . . . . Combat Hostiles . | . . . . . . . Parts Melted . | . . . . . . . Heat Transferred 100 | . . 100 . . . . Parts Sabotaged . | . . . . . . . Parts Stolen . | . . . . . . . Parts Stripped . | . . . . . . . Power Chain Reactions . | . . . . . . . Alert | -11 -10 -10 -9 -9 -9 -8 ------- Run | Yrd Mat Min Mat Min Exi Min Maximum Alert Level 1 | . . . 1 . . . Low Security (%) 67 | 100 100 100 28 100 . 100 Level 1 32 | . . . 71 . . . Level 2 . | . . . . . . . Level 3 . | . . . . . . . Level 4 . | . . . . . . . Level 5 . | . . . . . . . High Security . | . . . . . . . Max Security . | . . . . . . . Peak Influence 328 | 10 97 60 328 118 . 61 Initial 98 | . . . . 98 . . Average 106 | 1 16 16 212 85 . 7 Influence Increases 1763 | 10 481 116 990 70 . 96 Destroy 0b10 Robot/C 1120 | . 260 100 640 60 . 60 Destroy 0b10 Robot/NC 95 | 10 50 5 30 . . . Destroy Leader 256 | . 58 10 168 10 . 10 Successful Hack 54 | . 23 . 31 . . . Disable Machine 45 | . . . 45 . . . Destroy Structure 73 | . . 1 46 . . 26 Lose Combat Pursuer 120 | . 90 . 30 . . . Influence Decreases 1722 | 10 481 116 737 265 58 55 Entered New Map 213 | . . . . 155 58 . Time Decay 1204 | 10 471 116 497 100 . 10 Lost Part 155 | . 10 . 90 10 . 45 Purge Threat 150 | . . . 150 . . . Squads Dispatched 6 | . 3 . 3 . . . Investigation . | . . . . . . . Extermination . | . . . . . . . Reinforcement 6 | . 3 . 3 . . . Assault . | . . . . . . . Garrison . | . . . . . . . Intercept . | . . . . . . . Searches Triggered . | . . . . . . . Construction Impeded 1 | . . . 1 . . . Haulers Reinforced . | . . . . . . . Active Scanning Responses . | . . . . . . . Cargo Convoy Interrupts . | . . . . . . . Stealth | -11 -10 -10 -9 -9 -9 -8 --------- Run | Yrd Mat Min Mat Min Exi Min Distress Signals 10 | . 2 . 8 . . . Communications Jammed . | . . . . . . . Distress Signals . | . . . . . . . Times Spotted 106 | . 39 6 52 3 . 6 Peak Tracking Total 6 | . 5 3 6 3 . 6 Tactical Retreats 6 | . 4 . 2 . . . Traps | -11 -10 -10 -9 -9 -9 -8 ------- Run | Yrd Mat Min Mat Min Exi Min Traps Triggered 4 | . 2 . 2 . . . Indirectly . | . . . . . . . Trap Hack Attempts . | . . . . . . . Triggered . | . . . . . . . Disarmed . | . . . . . . . Reprogrammed . | . . . . . . . Reused . | . . . . . . . Traps Extracted . | . . . . . . . Installed . | . . . . . . . Triggered . | . . . . . . . Machines | -11 -10 -10 -9 -9 -9 -8 ---------- Run | Yrd Mat Min Mat Min Exi Min Machines Disabled 3 | . . . 3 . . . Max in Single Turn 2 | . . . 2 . . . Machines Repaired . | . . . . . . . Machines Dismantled . | . . . . . . . Machines Sabotaged . | . . . . . . . Overloaded Fab Kills . | . . . . . . . Hacking | -11 -10 -10 -9 -9 -9 -8 --------- Run | Yrd Mat Min Mat Min Exi Min Machines Accessed 20 | . 8 . 11 . 1 . Terminals 13 | . 5 . 8 . . . Fabricators . | . . . . . . . Repair Stations 2 | . 1 . 1 . . . Recycling Units 2 | . 2 . . . . . Scanalyzers 2 | . . . 2 . . . Garrison Access . | . . . . . . . Total Hacks 54 | . 21 . 32 . 1 . Successful 36 | . 13 . 22 . 1 . Failed 17 | . 7 . 10 . . . Catastrophic 3 | . . . 3 . . . Database Lockouts 1 | . 1 . . . . . Manual 22 | . 12 . 9 . 1 . Terminals 34 | . 15 . 19 . . . Fabricators . | . . . . . . . Repair Stations 5 | . 3 . 2 . . . Recycling Units 3 | . 3 . . . . . Scanalyzers 11 | . . . 11 . . . Garrison Access . | . . . . . . . Terminal Hacks 18 | . 8 . 9 . 1 . Robot Analysis 1 | . 1 . . . . . Prototype ID Bank 3 | . 2 . 1 . . . Branch Access Points 2 | . 2 . . . . . Terminal Index 2 | . 1 . 1 . . . Alert Level 3 | . . . 3 . . . Unreport Threat 1 | . . . 1 . . . Locate Traps 2 | . 1 . 1 . . . Dispatch Records 1 | . . . 1 . . . Recall Reinforcements 1 | . 1 . . . . . Zone Layout 1 | . . . 1 . . . Proto ID Catalog 1 | . . . . . 1 . Fabricator Hacks . | . . . . . . . Repair Station Hacks 5 | . 3 . 2 . . . Scan Component 2 | . 1 . 1 . . . Repair 2 | . 1 . 1 . . . Refit 1 | . 1 . . . . . Recycling Unit Hacks 2 | . 2 . . . . . Report Inventory 2 | . 2 . . . . . Scanalyzer 11 | . . . 11 . . . Insert Component 1 | . . . 1 . . . Analyze 1 | . . . 1 . . . Retrieve Study 9 | . . . 9 . . . Garrison Access Hacks . | . . . . . . . Unauthorized Hacks . | . . . . . . . Terminals . | . . . . . . . Fabricators . | . . . . . . . Repair Stations . | . . . . . . . Recycling Units . | . . . . . . . Scanalyzers . | . . . . . . . Garrison Access . | . . . . . . . Data Cores Recovered . | . . . . . . . Used . | . . . . . . . Hacking Detections 16 | . 6 . 10 . . . Full Trace Events . | . . . . . . . Feedback Events . | . . . . . . . Feedback Blocked . | . . . . . . . Robot Schematics Acquired . | . . . . . . . Robots Built . | . . . . . . . Authchips . | . . . . . . . Time . | . . . . . . . Total Robot Build Rating . | . . . . . . . Part Schematics Acquired 1 | . . . 1 . . . Parts Built . | . . . . . . . Authchips . | . . . . . . . Time . | . . . . . . . Total Part Build Rating . | . . . . . . . Part Studies Acquired 9 | . . . 9 . . . Parts Repaired 2 | . 1 . 1 . . . Time 52 | . 26 . 26 . . . Parts Recycled . | . . . . . . . Recycled Matter . | . . . . . . . Retrieved Matter . | . . . . . . . Retrieved Components . | . . . . . . . Parts Scanalyzed 1 | . . . 1 . . . Part Schematics Acquired 1 | . . . 1 . . . Parts Damaged . | . . . . . . . Bothacking | -11 -10 -10 -9 -9 -9 -8 ------------ Run | Yrd Mat Min Mat Min Exi Min Used RIF Installer . | . . . . . . . Robots Hacked . | . . . . . . . Non-combat . | . . . . . . . Combat . | . . . . . . . Robot Hacks Applied . | . . . . . . . Relay Couplers Released . | . . . . . . . Fabnet Peak Effective % . | . . . . . . . Robots Rewired . | . . . . . . . Allies Hacked . | . . . . . . . Hacks Repelled . | . . . . . . . Allies | -11 -10 -10 -9 -9 -9 -8 -------- Run | Yrd Mat Min Mat Min Exi Min Total Allies . | . . . . . . . Largest Group . | . . . . . . . Highest-Rated Group . | . . . . . . . Highest-Rated Ally . | . . . . . . . Total Orders . | . . . . . . . Ally Attacks . | . . . . . . . Total Damage . | . . . . . . . Kills . | . . . . . . . Allies Corrupted . | . . . . . . . Allies Melted . | . . . . . . . Intel | -11 -10 -10 -9 -9 -9 -8 ------- Run | Yrd Mat Min Mat Min Exi Min Active Infowar (turns) 3587 | 20 1110 . 2457 . . . Terrain 2072 | . . . 2072 . . . Seismic 1774 | 20 1110 . 644 . . . Robot Analysis Total 1 | . 1 . . . . . Derelict Logs Recovered 1 | . . . . 1 . . Drone Launches . | . . . . . . . Drone Recoveries . | . . . . . . . Exploration | -11 -10 -10 -9 -9 -9 -8 ------------- Run | Yrd Mat Min Mat Min Exi Min Turns Passed 7796 | 134 3063 390 3162 212 747 88 Spaces Moved 2229 | 59 914 101 834 71 233 17 Core 2 | 2 . . . . . . Treads 2227 | 57 914 101 834 71 233 17 Legs . | . . . . . . . Wheels . | . . . . . . . Hover . | . . . . . . . Flight . | . . . . . . . Fastest Speed 50 | 50 160 320 240 240 320 320 Average Speed 275 | 156 247 320 296 283 320 320 Slowest Speed 480 | 160 320 320 480 320 320 320 Overloaded Moves . | . . . . . . . Propulsion Burnouts . | . . . . . . . Robots Hopped . | . . . . . . . Potential Cave-ins . | . . . . . . . Cave-ins Triggered . | . . . . . . . Exploration Rate (%) 43 | 4 95 20 79 30 61 13 Regions Visited 6 Branch Regions 4 Pre-discovered Areas . | . . . . . . . Known Exits Taken 4 | . 1 . 1 1 1 . Unknown Exits Taken 2 | 1 . 1 . . . . Scrap Searched 1 | . . 1 . . . . Spaces Dug . | . . . . . . . Terrain Destroyed 83 | . . 1 48 . . 34 Melee . | . . . . . . . Projectile 1 | . . 1 . . . . AOE 82 | . . . 48 . . 34 Terrain Rammed . | . . . . . . . Walls Destroyed . | . . . . . . . Machines Disabled . | . . . . . . . Actions | -11 -10 -10 -9 -9 -9 -8 --------- Run | Yrd Mat Min Mat Min Exi Min Total 3486 | 78 1578 131 1353 75 238 33 Wait 894 | . 550 . 344 . . . Move 2223 | 58 913 100 833 70 232 17 Hop . | . . . . . . . Pick Up 37 | 2 17 6 10 . 2 . Fast Attach 13 | 7 1 . 5 . . . Attach 20 | . . 1 14 1 . 4 Detach 4 | . . . 2 . 2 . Swap 34 | . 8 6 19 . . 1 Drop 32 | . 10 1 19 . 2 . Fire 224 | 11 78 17 106 4 . 8 Melee 3 | . . . . . . 3 Ram . | . . . . . . . Kick . | . . . . . . . Crush 2 | . 1 . 1 . . . Escape Stasis . | . . . . . . . Rewire . | . . . . . . . Trap . | . . . . . . . Miscellaneous . | . . . . . . . Route ------- -11/Scrapyard -10/Materials (discovered 4 exits: *Mat x3 / *Min) -10/Mines -9/Materials (discovered 5 exits: *Mat x2 / *Min / *Sto x2) -9/Mines (discovered 2 exits: *Mat / *Exi) -9/Exiles (discovered 2 exits: *Min x2) -8/Mines History --------- Turn | Location | Event 20 | -11/Scrapyard | Discovered new exit (range 15) 135 | -11/Scrapyard | Entered Materials 145 | -10/Materials | Identified exit to Mines 309 | -10/Materials | Build established: Mutant 716 | -10/Materials | Discovered new exit (range 15) 1013 | -10/Materials | Build established: Scavenger-Mutant 1137 | -10/Materials | Discovered new exit (range 5) 1163 | -10/Materials | Central database locked down 1474 | -10/Materials | Repaired Seismic Detector 2145 | -10/Materials | Discovered new exit (range 15) 2479 | -10/Materials | Build established: Mutant 3198 | -10/Materials | Entered Mines 3279 | -10/Mines | Core integrity fell below 50% 3353 | -10/Mines | Discovered new exit (range 5) 3360 | -10/Mines | Received a Rocket Launcher from a helpful Derelict 3588 | -10/Mines | Entered Materials 3588 | -9/Materials | Evolved 2 slots: Utility x2 3629 | -9/Materials | Build established: Scavenger-Mutant 4609 | -9/Materials | Discovered new exit (range 13) 5085 | -9/Materials | Repaired Flight Unit 5391 | -9/Materials | Discovered new exit (range 10) 5915 | -9/Materials | Discovered new exit (range 11) 6003 | -9/Materials | Discovered new exit (range 3) 6272 | -9/Materials | Core integrity fell below 50% 6313 | -9/Materials | Lost 4 parts (1p2n1u) 6650 | -9/Materials | Discovered new exit (range 10) 6700 | -9/Materials | Identified exit to Storage 6748 | -9/Materials | Identified exit to Mines 6750 | -9/Materials | Entered Mines 6847 | -9/Mines | Learned 2 Materials zone layouts 6895 | -9/Mines | Discovered new exit (range 8) 6917 | -9/Mines | Identified exit to Materials 6949 | -9/Mines | Deemed a non-threat by the Exiles lab entrance 6949 | -9/Mines | Discovered new exit (range 5) 6959 | -9/Mines | Identified exit to Exiles 6962 | -9/Mines | Entered Exiles 7007 | -9/Exiles | Discovered new exit (range 15) 7049 | -9/Exiles | Identified exit to Mines 7120 | -9/Exiles | Met 8R-AWN 7175 | -9/Exiles | Met EX-HEX 7261 | -9/Exiles | Met EX-BIN 7303 | -9/Exiles | Aligned with FarCom system 7306 | -9/Exiles | Given EX-Vault access code 7383 | -9/Exiles | Opened EX-Vault 7409 | -9/Exiles | Found Flying Fortress v7 7475 | -9/Exiles | Warned to stay clear of 0b10 Research branches 7568 | -9/Exiles | Met EX-DEC 7683 | -9/Exiles | Discovered exit to Mines (range 10) 7709 | -9/Exiles | Left Exiles lab with Flying Fortress v7 7709 | -9/Exiles | Entered Mines 7792 | -8/Mines | Core integrity fell below 20% 7797 | -8/Mines | Destroyed by G-47 Trooper with Particle Gun Last Messages --------------- 07633_ AXQP7/L%:YCCUBO:O1A&FIXK: 07683_ EXIT=FOUND: MINES 07687_ WOSATH/OXMISGFJ4OZC&QHKOJ WU%#:#N LOCATION=MINES GOAL=ESCAPE 07709_ Receiving FarCom transmissions... 07754_ C1KAL%3V Z7BIRL2KQ&ZL/=WUV:KB 8W 07775_ System corrupted: IFF burst signal emitted. 07775_ L-31 Rogue destroyed. 07776_ Assault Rifle destroyed. 07778_ Lgt. Treads+ destroyed. 07779_ Flight Unit+ destroyed. 07781_ Hvy. Assault Rifle+ destroyed. 07782_ Lgt. Armor Plating destroyed. 07782_ Critical hit (Burn: +37). 07782_ G-47 Trooper destroyed. 07789_ Rocket Launcher+ destroyed. 07792_ ,V:MUMCJYD LAP49WF811RQPU CKGJ